bitfinex-derivatives/quotes_BNBF0:USTF0_20251027
["timestamp","ask_amount","ask_price","bid_price","bid_amount"]
[1761543848337,0.15094896,1154.3,1152.4,0.56626034]
[1761543848541,0.15094896,1154.3,1152.3,1.395]
[1761543848740,0.15094896,1154.3,1152.4,0.56626034]
[1761543848940,0.15094896,1154.3,1152.3,1.395]
[1761543849241,0.15094896,1154.3,1152.4,0.56626076]
[1761543849440,0.15094896,1154.3,1152.3,1.395]
[1761543849640,0.15094896,1154.3,1152.4,0.56624841]
[1761543849841,0.15094896,1154.3,1152.3,1.395]
[1761543850042,0.15094896,1154.3,1152.4,0.56624841]
[1761543850242,0.15094896,1154.3,1152.3,1.395]
[1761543850440,0.15094896,1154.3,1152.4,0.56625513]
[1761543850739,0.15094896,1154.3,1152.3,1.395]
[1761543850945,0.15094896,1154.3,1152.4,0.56626315]
[1761543851240,0.15094896,1154.3,1152.3,1.395]
[1761543851541,0.15094896,1154.3,1152.4,0.56624882]
[1761543851841,0.15094896,1154.3,1152.3,1.395]
[1761543852041,0.15094896,1154.3,1152.4,0.56621943]
[1761543852240,0.15094896,1154.3,1152.3,1.395]
[1761543852444,0.15094896,1154.3,1152.4,0.56622344]
[1761543852740,0.15094896,1154.3,1152.3,1.395]
[1761543852944,0.15094896,1154.3,1152.4,0.5662222]
[1761543853143,0.15094896,1154.3,1152.3,1.395]
[1761543853443,0.15094896,1154.3,1152.4,0.56621121]
[1761543853741,0.15094896,1154.3,1152.3,1.395]
[1761543853943,0.15094896,1154.3,1152.4,0.56620908]
[1761543854140,0.15094896,1154.3,1152.3,1.395]
[1761543854340,0.15094896,1154.3,1152.4,0.56617738]
[1761543854540,0.15094896,1154.3,1152.3,1.395]
[1761543854744,0.15094896,1154.3,1152.4,0.56609299]
[1761543854944,0.15094896,1154.3,1152.5,0.56609299]
[1761543855244,0.15094896,1154.3,1152.3,1.395]
[1761543855447,0.15094896,1154.3,1152.4,0.56604404]
[1761543855745,0.15094896,1154.3,1152.5,0.56604404]
[1761543856045,0.15094896,1154.3,1152.3,1.395]
[1761543856341,0.15094896,1154.3,1152.4,0.56604404]
[1761543856545,0.15094896,1154.3,1152.5,0.56604404]
[1761543856748,0.15094896,1154.3,1152.3,1.395]
[1761543857042,0.15094896,1154.3,1152.4,0.56604578]
[1761543857242,0.15094896,1154.3,1152.5,0.56604578]
[1761543857441,0.15094896,1154.3,1152.3,1.395]
[1761543857741,0.15094896,1154.3,1152.4,0.56606184]
[1761543857940,0.15094896,1154.3,1152.5,0.56606184]
[1761543858142,0.15094896,1154.3,1152.3,1.395]
[1761543858341,0.15094896,1154.3,1152.4,0.56607882]
[1761543858642,0.15094896,1154.3,1152.5,0.56607882]
[1761543858842,0.15094896,1154.3,1152.3,1.395]
[1761543859043,0.15094896,1154.3,1152.4,0.56607882]
[1761543859244,0.15094896,1154.3,1152.5,0.56607882]
[1761543859448,0.15094896,1154.3,1152.3,1.395]
[1761543859744,0.15094896,1154.3,1152.4,0.56608326]
[1761543859944,0.15094896,1154.3,1152.5,0.56608326]
[1761543860142,0.15094896,1154.3,1152.3,1.395]
[1761543860444,0.15094896,1154.3,1152.4,0.56610191]
[1761543860647,0.15094896,1154.3,1152.5,0.56610191]
[1761543860847,0.15094896,1154.3,1152.3,1.395]
[1761543861042,0.15094896,1154.3,1152.4,0.56610191]
[1761543861344,0.15094896,1154.3,1152.5,0.56610191]
[1761543861648,0.15094896,1154.3,1152.0,0.63978842]
[1761543861844,0.15094896,1154.3,1152.1,0.56612144]
[1761543862043,0.15094896,1154.3,1152.2,0.56612144]
[1761543862247,0.15094896,1154.3,1152.3,0.56612144]
[1761543862448,0.15094896,1154.3,1152.4,0.56612144]
[1761543862748,0.15094896,1154.3,1152.5,0.56612144]
[1761543862945,0.15094896,1154.3,1152.0,0.63978842]
[1761543863144,0.15094896,1154.3,1152.1,0.56615507]
[1761543863348,0.15094896,1154.3,1152.2,0.56615507]
[1761543863546,0.15094896,1154.3,1152.3,0.56615507]
[1761543863844,0.15094896,1154.3,1152.4,0.56615507]
[1761543864050,0.15094896,1154.3,1152.5,0.56615507]
[1761543864251,0.15094896,1154.3,1152.0,0.63978842]
[1761543864450,0.15094896,1154.3,1152.1,0.56609382]
[1761543864650,0.15094896,1154.3,1152.2,0.56609382]
[1761543864850,0.15094896,1154.3,1152.3,0.56609382]
[1761543865050,0.15094896,1154.3,1152.4,0.56609382]
[1761543865346,0.15094896,1154.3,1152.5,0.56609382]
[1761543865545,0.15094896,1154.3,1152.2,1.368]
[1761543865846,0.15094896,1154.3,1152.3,0.56613136]
[1761543866049,0.15094896,1154.3,1152.4,0.56613136]
[1761543866246,0.15094896,1154.3,1152.5,0.56613136]
[1761543866450,0.15094896,1154.3,1152.2,1.368]
[1761543866650,0.15094896,1154.3,1152.3,0.56616501]
[1761543866947,0.15094896,1154.3,1152.4,0.56616501]
[1761543867150,0.15094896,1154.3,1152.5,0.56616501]
[1761543867349,0.15094896,1154.3,1152.2,1.368]
[1761543867547,0.15094896,1154.3,1152.3,0.56624836]
[1761543867846,0.15094896,1154.3,1152.4,0.56624836]
[1761543868051,0.15094896,1154.3,1152.5,0.56624836]
[1761543868248,0.15094896,1154.3,1152.2,1.368]
[1761543868449,0.15094896,1154.3,1152.3,0.56629432]
[1761543868648,0.15094896,1154.3,1152.4,0.56629432]
[1761543868951,0.15094896,1154.3,1152.5,0.56629432]
[1761543869152,0.15094896,1154.3,1152.2,1.368]
[1761543869351,0.15094896,1154.3,1152.3,0.56643054]
[1761543869550,0.15094896,1154.3,1152.4,0.56643054]
[1761543869746,0.15094896,1154.3,1152.5,0.56643054]
[1761543870047,0.15094896,1154.3,1152.2,1.368]
[1761543870347,0.15094896,1154.3,1152.3,0.56643054]
[1761543870551,0.15094896,1154.3,1152.4,0.56643054]
[1761543870751,0.15094896,1154.3,1152.5,0.56643054]
[1761543870948,0.15094896,1154.3,1152.2,1.368]
[1761543871149,0.15094896,1154.3,1152.3,0.56646768]
[1761543871348,0.15094896,1154.3,1152.4,0.56646768]
[1761543871551,0.15094896,1154.3,1152.5,0.56646768]
[1761543871751,0.15094896,1154.3,1152.2,1.368]
[1761543871949,0.15094896,1154.3,1152.3,0.56650747]
[1761543872151,0.15094896,1154.3,1152.4,0.56650747]
[1761543872350,0.15094896,1154.3,1152.5,0.56650747]
[1761543872554,0.15094896,1154.3,1152.2,1.368]
[1761543872753,0.15094896,1154.3,1152.3,0.56655024]
[1761543872953,0.15094896,1154.3,1152.4,0.56655024]
[1761543873152,0.15094896,1154.3,1152.5,0.56655024]
[1761543873356,0.15094896,1154.3,1152.2,1.368]
[1761543873552,0.15094896,1154.3,1152.3,0.5665964]
[1761543873751,0.15094896,1154.3,1152.4,0.5665964]
[1761543874056,0.15094896,1154.3,1152.5,0.5665964]
[1761543874256,0.15094896,1154.3,1152.2,1.368]
[1761543874456,0.15094896,1154.3,1152.3,0.56663123]
[1761543874753,0.15094896,1154.3,1152.4,0.56663123]
[1761543874952,0.15094896,1154.3,1152.5,0.56663123]
[1761543875254,0.15094896,1154.3,1152.2,1.368]
[1761543875453,0.15094896,1154.3,1152.3,0.56666953]
[1761543875657,0.15094896,1154.3,1152.4,0.56666953]
[1761543875854,0.15094896,1154.3,1152.5,0.56666953]
[1761543876059,0.15094896,1154.3,1152.2,1.368]
[1761543876259,0.15094896,1154.3,1152.3,0.5666695]
[1761543876558,0.15094896,1154.3,1152.4,0.5666695]
[1761543876758,0.15094896,1154.3,1152.5,0.5666695]
[1761543876954,0.15094896,1154.3,1152.2,1.368]
[1761543877159,0.15094896,1154.3,1152.3,0.5667183]
[1761543877358,0.15094896,1154.3,1152.4,0.5667183]
[1761543877657,0.15094896,1154.3,1152.5,0.5667183]
[1761543877855,0.15094896,1154.3,1152.2,1.368]
[1761543878058,0.15094896,1154.3,1152.3,0.56676093]
[1761543878258,0.15094896,1154.3,1152.4,0.56676093]
[1761543878458,0.15094896,1154.3,1152.5,0.56676093]
[1761543878758,0.15094896,1154.3,1152.2,1.368]
[1761543878959,0.15094896,1154.3,1152.3,0.56690117]
[1761543879159,0.15094896,1154.3,1152.4,0.56690117]
[1761543879356,0.15094896,1154.3,1152.5,0.56690117]
[1761543879556,0.15094896,1154.3,1152.2,1.368]
[1761543879762,0.15094896,1154.3,1152.3,0.56697773]
[1761543879958,0.15094896,1154.3,1152.4,0.56697773]
[1761543880158,0.15094896,1154.3,1152.5,0.56697773]
[1761543880356,0.15094896,1154.3,1152.2,1.368]
[1761543880557,0.15094896,1154.3,1152.3,0.56704675]
[1761543880757,0.15094896,1154.3,1152.4,0.56704675]
[1761543880958,0.15094896,1154.3,1152.5,0.56704675]
[1761543881160,0.15094896,1154.3,1152.2,1.368]
[1761543881358,0.15094896,1154.3,1152.3,0.56704669]
[1761543881661,0.15094896,1154.3,1152.4,0.56704669]
[1761543881857,0.15094896,1154.3,1152.5,0.56704669]
[1761543882056,0.15094896,1154.3,1152.6,0.56704669]
[1761543882357,0.15094896,1154.3,1152.2,1.368]
[1761543882560,0.15094896,1154.3,1152.3,0.56699878]
[1761543882760,0.15094896,1154.3,1152.4,0.56699878]
[1761543882958,0.15094896,1154.3,1152.5,0.56699878]
[1761543883162,0.15094896,1154.3,1152.6,0.56699878]
[1761543883361,0.15094896,1154.3,1152.2,1.368]
[1761543883563,0.15094896,1154.3,1152.3,0.56699463]
[1761543883759,0.15094896,1154.3,1152.4,0.56699463]
[1761543883963,0.15094896,1154.3,1152.5,0.56699463]
[1761543884260,0.15094896,1154.3,1152.6,0.56699463]
[1761543884465,0.15094896,1154.3,1152.2,1.368]
[1761543884663,0.15094896,1154.3,1152.3,0.56698859]
[1761543884962,0.15094896,1154.3,1152.4,0.56698859]
[1761543885165,0.15094896,1154.3,1152.5,0.56698859]
[1761543885366,0.15094896,1154.3,1152.6,0.56698859]
[1761543885560,0.15094896,1154.3,1152.2,1.368]
[1761543885764,0.15094896,1154.3,1152.3,0.5669828]
[1761543885963,0.15094896,1154.3,1152.4,0.5669828]
[1761543886164,0.15094896,1154.3,1152.5,0.5669828]
[1761543886363,0.15094896,1154.3,1152.6,0.5669828]
[1761543886663,0.15094896,1154.3,1152.2,1.368]
[1761543886964,0.15094896,1154.3,1152.3,0.56700668]
[1761543887164,0.15094896,1154.3,1152.4,0.56700668]
[1761543887368,2.1611392,1154.1,1152.5,0.56700668]
[1761543887668,2.1611392,1154.1,1152.2,2.00778842]
[1761543887868,2.1611392,1154.1,1152.3,0.56700943]
[1761543888068,2.1611392,1154.1,1152.4,0.56700943]
[1761543888364,2.1611392,1154.1,1152.5,0.56700943]
[1761543888568,2.1611392,1154.1,1152.2,2.00778842]
[1761543888763,2.1611392,1154.1,1152.3,0.56700604]
[1761543888968,2.1611392,1154.1,1152.4,0.56700604]
[1761543889264,2.1611392,1154.1,1152.5,0.56700604]
[1761543889468,2.1611392,1154.1,1152.2,2.00778842]
[1761543889764,2.1611392,1154.1,1152.3,0.56700309]
[1761543890064,0.15094896,1154.3,1152.4,0.56700309]
[1761543890365,0.15094896,1154.3,1152.5,0.56700309]
[1761543890569,0.15094896,1154.3,1152.6,0.56700309]
[1761543890764,0.15094896,1154.3,1152.7,0.56700309]
[1761543890963,0.15094896,1154.3,1152.2,1.368]
[1761543891163,0.15094896,1154.3,1152.3,0.56682789]
[1761543891364,0.15094896,1154.3,1152.4,0.56682789]
[1761543891565,0.15094896,1154.3,1152.5,0.56682789]
[1761543891767,0.15094896,1154.3,1152.6,0.56682789]
[1761543891970,0.15094896,1154.3,1152.7,0.56682789]
[1761543892170,0.15094896,1154.3,1152.2,1.368]
[1761543892368,0.15094896,1154.3,1152.3,0.5667588]
[1761543892572,0.15094896,1154.3,1152.4,0.5667588]
[1761543892872,0.15094896,1154.3,1152.5,0.5667588]
[1761543893074,0.15094896,1154.3,1152.6,0.5667588]
[1761543893269,0.15094896,1154.3,1152.7,0.5667588]
[1761543893480,0.15094896,1154.3,1152.2,1.368]
[1761543893679,0.15094896,1154.3,1152.3,0.56672408]
[1761543893877,0.15094896,1154.3,1152.4,0.56672408]
[1761543894076,0.15094896,1154.3,1152.5,0.56672408]
[1761543894280,0.15094896,1154.3,1152.6,0.56672408]
[1761543894580,0.15094896,1154.3,1152.7,0.56672408]
[1761543894776,0.15094896,1154.3,1152.2,1.368]
[1761543894981,0.15094896,1154.3,1152.3,0.56669633]
[1761543895281,0.15094896,1154.3,1152.4,0.56669633]
[1761543895582,0.15094896,1154.3,1152.5,0.56669633]
[1761543895782,0.15094896,1154.3,1152.6,0.56669633]
[1761543895984,0.15094896,1154.3,1152.7,0.56669633]
[1761543896179,0.15094896,1154.3,1152.2,1.368]
[1761543896378,0.15094896,1154.3,1152.3,0.56676736]
[1761543896579,0.15094896,1154.3,1152.4,0.56676736]
[1761543896777,0.15094896,1154.3,1152.5,0.56676736]
[1761543897078,0.15094896,1154.3,1152.6,0.56676736]
[1761543897281,0.15094896,1154.3,1152.7,0.56676736]
[1761543897479,0.15094896,1154.3,1152.2,2.00778842]
[1761543897678,0.15094896,1154.3,1152.3,0.56675686]
[1761543897982,0.15094896,1154.3,1152.4,0.56675686]
[1761543898177,0.15094896,1154.3,1152.5,0.56675686]
[1761543898385,0.15094896,1154.3,1152.6,0.56675686]
[1761543898583,0.15094896,1154.3,1152.2,2.00778842]
[1761543898784,0.15094896,1154.3,1152.3,0.56671488]
[1761543899083,0.15094896,1154.3,1152.4,0.56671488]
[1761543899284,0.15094896,1154.3,1152.5,0.56671488]
[1761543899581,0.15094896,1154.3,1152.6,0.56671488]
[1761543899782,0.15094896,1154.3,1152.2,2.00778842]
[1761543899980,0.15094896,1154.3,1152.3,0.56669194]
[1761543900283,0.15094896,1154.3,1152.2,2.00778842]
[1761543900284,0.15094896,1154.3,1152.4,0.56669194]
[1761543900484,0.15094896,1154.3,1152.5,0.56669194]
[1761543900684,0.15094896,1154.3,1152.6,0.56669194]
[1761543900984,0.15094896,1154.3,1152.2,2.00778842]
[1761543901184,0.15094896,1154.3,1152.3,0.56669977]
[1761543901481,2.31208816,1154.3,1152.4,0.56669977]
[1761543901780,2.31208816,1154.3,1152.5,0.56669977]
[1761543901984,2.31208816,1154.3,1152.6,0.56669977]
[1761543902282,2.31208816,1154.3,1152.2,2.00778842]
[1761543902482,0.15094896,1154.3,1152.3,0.56698055]
[1761543902680,0.15094896,1154.3,1152.4,0.56698055]
[1761543902880,0.15094896,1154.3,1152.5,0.56698055]
[1761543903084,0.15094896,1154.3,1152.6,0.56698055]
[1761543903286,0.15094896,1154.3,1152.2,2.00778842]
[1761543903485,0.15094896,1154.3,1152.3,0.56701761]
[1761543903686,0.15094896,1154.3,1152.4,0.56701761]
[1761543903984,0.15094896,1154.3,1152.5,0.56701761]
[1761543904184,0.15094896,1154.3,1152.6,0.56701761]
[1761543904379,0.15094896,1154.3,1152.2,1.368]
[1761543904580,0.15094896,1154.3,1152.3,0.56709687]
[1761543904782,0.15094896,1154.3,1152.4,0.56709687]
[1761543904983,0.15094896,1154.3,1152.5,0.56709687]
[1761543905182,0.15094896,1154.3,1152.6,0.56709687]
[1761543905483,0.15094896,1154.3,1152.2,1.368]
[1761543905682,0.15094896,1154.3,1152.3,0.56711173]
[1761543905883,0.15094896,1154.3,1152.4,0.56711173]
[1761543906084,0.15094896,1154.3,1152.5,0.56711173]
[1761543906283,0.15094896,1154.3,1152.6,0.56711173]
[1761543906583,0.15094896,1154.3,1152.2,1.368]
[1761543906783,0.15094896,1154.3,1152.3,0.56727928]
[1761543907088,0.15094896,1154.3,1152.2,1.368]
[1761543907384,2.1611392,1154.1,1152.2,1.368]
[1761543908689,2.1611392,1154.1,1151.7,0.63978842]
[1761543908889,2.1611392,1154.1,1151.8,0.56724712]
[1761543909186,2.1611392,1153.9,1151.9,0.56724712]
[1761543909390,2.1611392,1153.9,1152.0,0.56724712]
[1761543909589,2.1611392,1153.9,1152.1,0.56724712]
[1761543909790,2.1611392,1153.9,1151.7,0.63978842]
[1761543909986,2.1611392,1153.9,1151.8,0.56706804]
[1761543910285,2.1611392,1153.9,1151.9,0.56706804]
[1761543910490,2.1611392,1153.9,1152.0,0.56706804]
[1761543910687,2.1611392,1153.9,1151.6,0.63978842]
[1761543910890,3.17654386,1154.3,1151.7,0.56693977]
[1761543911092,3.17654386,1154.3,1151.8,0.56693977]
[1761543911287,3.17654386,1154.3,1151.6,0.63978842]
[1761543911288,0.15094896,1154.3,1151.9,0.56693977]
[1761543911488,0.15094896,1154.3,1152.0,0.56693977]
[1761543911688,0.15094896,1154.3,1151.6,0.63978842]
[1761543911887,0.15094896,1154.3,1151.7,0.56690481]
[1761543912089,0.15094896,1154.3,1151.8,1.64490481]
[1761543912293,0.15094896,1154.3,1151.9,0.56690481]
[1761543912492,0.15094896,1154.3,1152.0,0.56690481]
[1761543912689,0.15094896,1154.3,1152.1,0.56690481]
[1761543912894,0.15094896,1154.3,1151.8,1.078]
[1761543913194,0.15094896,1154.3,1151.9,0.56676477]
[1761543913394,0.15094896,1154.3,1152.0,0.56676477]
[1761543913591,0.15094896,1154.3,1151.8,1.078]
[1761543913795,0.15094896,1154.3,1151.9,0.56663685]
[1761543913994,0.15094896,1154.3,1152.0,0.56663685]
[1761543914193,0.15094896,1154.3,1151.8,1.078]
[1761543914494,0.15094896,1154.3,1151.9,0.5665324]
[1761543914695,0.15094896,1154.3,1152.0,0.5665324]
[1761543914895,0.15094896,1154.3,1151.8,1.078]
[1761543915097,0.15094896,1154.3,1151.9,0.56653258]
[1761543915397,0.15094896,1154.3,1152.0,0.56653258]
[1761543915696,0.15094896,1154.3,1151.8,1.078]
[1761543915892,0.15094896,1154.3,1151.9,0.56642314]
[1761543916097,0.15094896,1154.3,1152.0,0.56642314]
[1761543916396,0.15094896,1154.3,1151.8,1.078]
[1761543916595,0.15094896,1154.3,1151.9,0.56632275]
[1761543916795,0.15094896,1154.3,1152.0,0.56632275]
[1761543916993,0.15094896,1154.3,1151.8,1.078]
[1761543917296,0.15094896,1154.3,1151.9,0.56632275]
[1761543917497,0.15094896,1154.3,1152.0,0.56632275]
[1761543917698,0.15094896,1154.3,1151.8,1.078]
[1761543917897,0.15094896,1154.3,1151.9,0.5662374]
[1761543918196,0.15094896,1154.3,1152.0,0.5662374]
[1761543918393,0.15094896,1154.3,1151.8,1.078]
[1761543918595,0.15094896,1154.3,1151.9,0.56614874]
[1761543918793,0.15094896,1154.3,1152.0,0.56614874]
[1761543919094,0.15094896,1154.3,1151.8,1.078]
[1761543919297,0.15094896,1154.3,1151.9,0.56614888]
[1761543919598,0.15094896,1154.3,1152.0,0.56614888]
[1761543919796,0.15094896,1154.3,1151.8,1.078]
[1761543920097,0.15094896,1154.3,1151.9,0.56604187]
[1761543920293,0.15094896,1154.3,1152.0,0.56604187]
[1761543920493,0.15094896,1154.3,1151.8,1.078]
[1761543920697,0.15094896,1154.3,1151.9,0.56597946]
[1761543920899,0.15094896,1154.3,1152.0,0.56597946]
[1761543921095,0.15094896,1154.3,1151.8,1.078]
[1761543921394,0.15094896,1154.3,1151.9,0.56597981]
[1761543921600,0.15094896,1154.3,1152.0,0.56597981]
[1761543921795,0.15094896,1154.3,1151.8,1.078]
[1761543922096,0.15094896,1154.3,1151.9,0.56593997]
[1761543922294,0.15094896,1154.3,1151.8,1.078]
[1761543922498,0.15094896,1154.3,1151.9,0.56587916]
[1761543922696,0.15094896,1154.3,1151.8,1.078]
[1761543922899,0.15094896,1154.3,1151.9,0.5658793]
[1761543923096,0.15094896,1154.3,1152.0,0.56583978]
[1761543923397,0.15094896,1154.3,1151.8,1.078]
[1761543923596,0.15094896,1154.3,1151.9,0.56578657]
[1761543923898,0.15094896,1154.3,1152.0,0.56578657]
[1761543924098,0.15094896,1154.3,1151.8,1.078]
[1761543924301,0.15094896,1154.3,1151.9,0.56579692]
[1761543924501,0.15094896,1154.3,1152.0,0.56579692]
[1761543924702,0.15094896,1154.3,1151.8,1.078]
[1761543924900,0.15094896,1154.3,1151.9,0.56575469]
[1761543925104,0.15094896,1154.3,1152.0,0.56575469]
[1761543925302,0.15094896,1154.3,1151.8,1.078]
[1761543925603,0.15094896,1154.3,1151.9,0.56571599]
[1761543925903,0.15094896,1154.3,1152.0,0.56571599]
[1761543926104,0.15094896,1154.3,1151.8,1.078]
[1761543926305,0.15094896,1154.3,1151.9,0.56571563]
[1761543926600,0.15094896,1154.3,1152.0,0.56571563]
[1761543926804,0.15094896,1154.3,1151.8,1.078]
[1761543927005,0.15094896,1154.3,1151.9,0.56568025]
[1761543927206,0.15094896,1154.3,1152.0,0.56568025]
[1761543927402,0.15094896,1154.3,1151.8,1.078]
[1761543927606,0.15094896,1154.3,1151.9,0.56564749]
[1761543927805,0.15094896,1154.3,1152.0,0.56564749]
[1761543928003,0.15094896,1154.3,1151.8,1.078]
[1761543928204,0.15094896,1154.3,1151.9,0.5657567]
[1761543928408,0.15094896,1154.3,1152.0,0.5657567]
[1761543928605,0.15094896,1154.3,1151.8,1.078]
[1761543928804,0.15094896,1154.3,1151.9,0.56561391]
[1761543929007,0.15094896,1154.3,1152.0,0.56561391]
[1761543929209,0.15094896,1154.3,1151.8,1.078]
[1761543929404,0.15094896,1154.3,1151.9,0.56558737]
[1761543929610,0.15094896,1154.3,1152.0,0.56558737]
[1761543929809,0.15094896,1154.3,1151.8,1.078]
[1761543930008,0.15094896,1154.3,1151.9,0.56558737]
[1761543930206,0.15094896,1154.3,1152.0,0.56558737]
[1761543930405,0.15094896,1154.3,1151.8,1.078]
[1761543930607,0.15094896,1154.3,1151.9,0.56555199]
[1761543930807,0.15094896,1154.3,1152.0,0.56555199]
[1761543931006,0.15094896,1154.3,1151.8,1.078]
[1761543931211,0.15094896,1154.3,1151.9,0.56555874]
[1761543931406,0.15094896,1154.3,1152.0,0.56555874]
[1761543931607,0.15094896,1154.3,1151.8,1.078]
[1761543931811,0.15094896,1154.3,1151.9,0.56557476]
[1761543932107,0.15094896,1154.3,1152.0,0.56557476]
[1761543932308,0.15094896,1154.3,1151.8,1.078]
[1761543932507,0.15094896,1154.3,1151.9,0.56578846]
[1761543932711,0.15094896,1154.3,1152.0,0.56578846]
[1761543932910,0.15094896,1154.3,1151.8,1.078]
[1761543933109,0.15094896,1154.3,1151.9,0.56578846]
[1761543933413,0.15094896,1154.3,1152.0,0.56578846]
[1761543933606,0.15094896,1154.3,1151.8,1.078]
[1761543933807,0.15094896,1154.3,1151.9,0.56578279]
[1761543934007,0.15094896,1154.3,1152.0,0.56578279]
[1761543934311,0.15094896,1154.3,1151.8,1.078]
[1761543934508,0.15094896,1154.3,1151.9,0.5657796]
[1761543934808,0.15094896,1154.3,1152.0,0.5657796]
[1761543935014,0.15094896,1154.3,1151.8,1.078]
[1761543935310,0.15094896,1154.3,1151.9,0.56577996]
[1761543935509,0.15094896,1154.3,1152.0,0.56577996]
[1761543935809,0.15094896,1154.3,1151.8,1.078]
[1761543936010,0.15094896,1154.3,1151.9,0.56574064]
[1761543936213,0.15094896,1154.3,1152.0,0.56574064]
[1761543936414,0.15094896,1154.3,1151.8,1.078]
[1761543936612,0.15094896,1154.3,1151.9,0.56574641]
[1761543936915,0.15094896,1154.3,1152.0,0.56574641]
[1761543937116,0.15094896,1154.3,1151.8,1.078]
[1761543937417,0.15094896,1154.3,1151.9,0.56573324]
[1761543937617,0.15094896,1154.3,1152.0,0.56573324]
[1761543937912,0.15094896,1154.3,1151.8,1.078]
[1761543938212,0.15094896,1154.3,1151.9,0.56581418]
[1761543938411,0.15094896,1154.3,1152.0,0.56581418]
[1761543938615,0.15094896,1154.3,1151.8,1.078]
[1761543938810,0.15094896,1154.3,1151.9,0.56580673]
[1761543939015,0.15094896,1154.3,1152.0,0.56580673]
[1761543939213,0.15094896,1154.3,1151.8,1.078]
[1761543939417,0.15094896,1154.3,1151.9,0.56593609]
[1761543939716,0.15094896,1154.3,1152.0,0.56593609]
[1761543940015,2.31208816,1154.3,1152.1,0.56593609]
[1761543940216,2.31208816,1154.3,1151.8,1.078]
[1761543940516,2.31208816,1154.3,1151.9,0.56590722]
[1761543940517,2.1611392,1154.1,1151.9,0.56590722]
[1761543940816,2.1611392,1154.1,1152.0,0.56590722]
[1761543941011,2.1611392,1154.1,1151.8,1.078]
[1761543941214,2.1611392,1154.1,1151.9,0.56592053]
[1761543941411,2.1611392,1154.1,1152.0,0.56592053]
[1761543941714,2.1611392,1154.1,1151.8,1.078]
[1761543941914,2.1611392,1154.1,1151.9,0.56593718]
[1761543942110,2.1611392,1154.1,1152.0,0.56593718]
[1761543942314,2.1611392,1154.1,1151.8,1.078]
[1761543942513,2.1611392,1154.1,1151.9,0.56595434]
[1761543942714,2.1611392,1154.1,1152.0,0.56595434]
[1761543942912,2.1611392,1154.1,1151.8,1.078]
[1761543943112,2.1611392,1154.1,1151.9,0.56595859]
[1761543943316,2.1611392,1154.1,1152.0,0.56595859]
[1761543943516,2.1611392,1154.1,1152.1,0.56604917]
[1761543943716,2.1611392,1154.1,1151.8,1.078]
[1761543943917,2.1611392,1154.1,1151.9,0.5660477]
[1761543944217,2.1611392,1154.1,1152.0,0.5660477]
[1761543944417,2.1611392,1154.1,1152.1,0.5660477]
[1761543944713,2.1611392,1154.1,1151.8,1.078]
[1761543944915,2.1611392,1154.1,1151.9,0.56609827]
[1761543945117,2.1611392,1154.1,1152.0,0.56609827]
[1761543945317,2.1611392,1154.1,1152.1,0.56609827]
[1761543945516,2.1611392,1154.1,1151.8,1.078]
[1761543945716,2.1611392,1154.1,1151.9,0.56575644]
[1761543945917,2.1611392,1154.1,1152.0,0.56575644]
[1761543946117,2.1611392,1154.1,1152.1,0.56575644]
[1761543946317,2.1611392,1154.1,1151.8,1.078]
[1761543946513,2.1611392,1154.1,1151.9,0.56567697]
[1761543946718,2.1611392,1154.1,1152.0,0.56567697]
[1761543946921,2.1611392,1154.1,1152.1,0.56567697]
[1761543947115,2.1611392,1154.1,1151.8,1.078]
[1761543947319,2.1611392,1154.1,1151.9,0.56568992]
[1761543947517,2.1611392,1154.1,1152.0,0.56568992]
[1761543947720,2.1611392,1154.2,1152.1,0.56568992]
[1761543948021,2.1611392,1154.2,1151.8,1.71778842]
[1761543948320,2.1611392,1154.2,1151.9,1.20541299]
[1761543948516,2.1611392,1154.2,1152.0,0.56562457]
[1761543948716,2.1611392,1154.2,1152.1,0.56562457]
[1761543948916,2.31208816,1154.3,1152.2,0.56562457]
[1761543949121,2.31208816,1154.3,1151.9,0.63978842]
[1761543949421,2.31208816,1154.3,1152.0,0.56556292]
[1761543949422,0.15097843,1153.9,1152.0,0.56556292]
[1761543949718,0.15097843,1153.9,1152.1,0.56556292]
[1761543950021,0.15097843,1153.9,1152.2,0.56556292]
[1761543950218,0.15097843,1153.9,1151.9,0.63978842]
[1761543950517,0.15097843,1153.9,1152.0,0.5656607]
[1761543950717,0.15097843,1153.9,1152.1,0.5656607]
[1761543950920,0.15097843,1153.9,1152.2,0.5656607]
[1761543951116,0.15097843,1153.9,1151.9,0.63978842]
[1761543951319,0.15097843,1153.9,1152.0,0.56566034]
[1761543951521,0.15097843,1153.9,1152.1,0.56566034]
[1761543951821,0.15097843,1153.9,1152.2,0.56566034]
[1761543952021,0.15097843,1153.9,1151.9,0.63978842]
[1761543952220,0.15097843,1153.9,1152.0,0.56571248]
[1761543952516,0.15097843,1153.9,1152.1,0.56571248]
[1761543952720,0.15097843,1153.9,1152.2,0.56571248]
[1761543953021,0.15097843,1153.9,1151.9,0.63978842]
[1761543953320,0.15097843,1153.9,1152.0,0.56575185]
[1761543953522,0.15097843,1153.9,1152.1,0.56575185]
[1761543953721,0.15097843,1153.9,1152.2,0.56575185]
[1761543954017,0.15097843,1153.9,1151.9,0.63978842]
[1761543954222,0.15097843,1153.9,1152.0,0.56567796]
[1761543954516,0.15097843,1153.9,1152.1,0.56567796]
[1761543954729,0.15097843,1153.9,1152.2,0.56567796]
[1761543954923,0.15097843,1153.9,1152.3,0.56567796]
[1761543955121,0.15097843,1153.9,1151.9,0.63978842]
[1761543955419,0.15097843,1153.9,1152.0,0.5657012]
[1761543955621,0.15097843,1153.9,1152.1,0.5657012]
[1761543955820,0.15097843,1153.9,1152.2,0.5657012]
[1761543956017,0.15097843,1153.9,1152.3,0.5657012]
[1761543956220,0.15097843,1153.9,1151.9,0.63978842]
[1761543956418,0.15097843,1153.9,1152.0,0.56579091]
[1761543956718,0.15097843,1153.9,1152.1,0.56579091]
[1761543956922,0.15097843,1153.9,1152.2,0.56579091]
[1761543957119,0.15097843,1153.9,1152.3,0.56579091]
[1761543957319,0.15097843,1153.9,1151.9,0.63978842]
[1761543957519,0.15097843,1153.9,1152.0,0.56586897]
[1761543957721,0.15097843,1153.9,1152.1,0.56586897]
[1761543957922,0.15097843,1153.9,1152.2,0.56586897]
[1761543958120,0.15097843,1153.9,1152.3,0.56586897]
[1761543958322,0.15097843,1153.9,1151.9,0.63978842]
[1761543958524,0.15097843,1153.9,1152.0,0.56597048]
[1761543958726,0.15097843,1153.9,1152.1,0.56597048]
[1761543958926,0.15097843,1153.9,1151.9,0.63978842]
[1761543958927,0.15097843,1153.9,1152.2,0.56597048]
[1761543959124,0.15097843,1153.9,1152.3,0.56597048]
[1761543959323,0.15097843,1153.9,1151.9,0.63978842]
[1761543959523,0.15097843,1153.9,1152.0,0.56620957]
[1761543959724,0.15097843,1153.9,1152.1,0.56620957]